fUST/lending_fUST_20240502
["ID","MTS","AMOUNT","RATE_DAILY","PERIOD"]
[325224128,1714596652649,-500.0,0.0005452,120]
[325224129,1714596652659,-500.0,0.0005452,120]
[325224130,1714596652668,-918.03,0.0005452,120]
[325224131,1714596652677,-500.0,0.0005452,120]
[325224132,1714596652687,-500.0,0.0005452,120]
[325224133,1714596652696,-500.0,0.0005452,120]
[325224134,1714596652704,-809.76,0.0005452,120]
[325224135,1714596652714,-151.0,0.0005452,7]
[325224136,1714596652723,-155.082013,0.0005452,7]
[325224137,1714596652732,-816.25,0.0005452,120]
[325224138,1714596652741,-500.0,0.0005452,120]
[325224139,1714596652750,-151.0,0.0005452,7]
[325224140,1714596652760,-676.4,0.0005452,120]
[325224141,1714596652769,-500.0,0.0005452,120]
[325224142,1714596652778,-151.0,0.0005452,7]
[325224143,1714596652787,-500.0,0.0005452,120]
[325224144,1714596652796,-500.0,0.0005452,120]
[325224145,1714596652805,-725.28,0.0005452,120]
[325224146,1714596652815,-617.03,0.0005452,120]
[325224147,1714596652824,-500.0,0.0005452,60]
[325224148,1714596652833,-500.0,0.0005452,120]
[325224149,1714596652842,-193.802651,0.0005452,7]
[325224150,1714596652851,-639.76470525,0.0005452,120]
[325224151,1714596652860,-500.0,0.0005452,120]
[325224152,1714596652869,-500.0,0.0005452,120]
[325224153,1714596652879,-193.802651,0.0005452,7]
[325224154,1714596652888,-500.0,0.0005452,120]
[325224155,1714596652898,-807.48,0.0005452,120]
[325224156,1714596652907,-747.13,0.0005452,120]
[325224157,1714596652916,-500.0,0.0005452,120]
[325224158,1714596652925,-500.0,0.0005452,2]
[325224159,1714596652935,-880.55,0.0005452,120]
[325224160,1714596652944,-772.32,0.0005452,120]
[325224161,1714596652958,-500.0,0.0005452,120]
[325224162,1714596652967,-500.0,0.0005452,120]
[325224163,1714596652979,-500.0,0.0005452,120]
[325224164,1714596652989,-1424.37,0.0005452,120]
[325224165,1714596652999,-902.14,0.0005452,120]
[325224166,1714596653008,-324.3944814,0.0005452,120]
[325224167,1714596653017,-500.0,0.0005452,2]
[325224168,1714596653027,-622.31,0.0005452,120]
[325224169,1714596653037,-908.32,0.0005452,120]
[325224170,1714596653047,-190.96848604,0.0005452,120]
[325224171,1714596653057,-531.47569242,0.0005452,120]
[325224172,1714596653066,-151.0,0.0005452,7]
[325224173,1714596653075,-1274.48,0.0005452,120]
[325224174,1714596653084,-500.0,0.0005452,120]
[325224175,1714596653094,-241.82251379,0.0005452,120]
[325224176,1714596653103,-500.0,0.0005452,120]
[325224177,1714596653112,-500.0,0.0005452,120]
[325224178,1714596653122,-500.0,0.0005452,120]
[325224179,1714596653132,-502.22103698,0.0005452,120]
[325224180,1714596653141,-500.0,0.0005452,120]
[325224181,1714596653150,-151.0,0.0005452,7]
[325224182,1714596653160,-505.13,0.0005452,120]
[325224183,1714596653169,-500.0,0.0005452,120]
[325224184,1714596653178,-233.677821,0.0005452,7]
[325224185,1714596653187,-2748.45,0.0005452,120]
[325224186,1714596653196,-2748.72,0.0005452,120]
[325224187,1714596653205,-500.0,0.0005452,120]
[325224188,1714596653214,-751.55,0.0005452,120]
[325224189,1714596653225,-500.0,0.0005452,120]
[325224190,1714596653234,-500.0,0.0005452,120]
[325224191,1714596653243,-500.0,0.0005452,120]
[325224192,1714596653252,-151.0,0.0005452,7]
[325224193,1714596653262,-500.0,0.0005452,120]
[325224194,1714596653272,-500.0,0.0005452,120]
[325224195,1714596653282,-891.08,0.0005452,120]
[325224196,1714596653291,-542.04,0.0005452,120]
[325224197,1714596653301,-500.0,0.0005452,120]
[325224198,1714596653310,-500.0,0.0005452,120]
[325224199,1714596653319,-718.42,0.0005452,120]
[325224200,1714596653329,-500.0,0.0005452,120]
[325224201,1714596653339,-236.642721,0.0005452,7]
[325224202,1714596653348,-876.77,0.0005452,120]
[325224203,1714596653358,-500.0,0.0005452,120]
[325224204,1714596653367,-500.0,0.0005452,120]
[325224205,1714596653377,-500.0,0.0005452,120]
[325224206,1714596653386,-500.0,0.0005452,120]
[325224207,1714596653396,-151.0,0.0005452,7]
[325224208,1714596653406,-500.0,0.0005452,120]
[325224209,1714596653416,-500.0,0.0005452,120]
[325224210,1714596653425,-500.0,0.0005452,120]
[325224211,1714596653434,-500.0,0.0005452,120]
[325224212,1714596653444,-500.0,0.0005452,120]
[325224213,1714596653454,-500.0,0.0005452,120]
[325224214,1714596653463,-500.0,0.0005452,120]
[325224215,1714596653472,-500.0,0.0005452,120]
[325224216,1714596653481,-500.0,0.0005452,120]
[325224217,1714596653492,-292.24236596,0.0005452,120]
[325224218,1714596653501,-500.0,0.0005452,120]
[325224219,1714596653511,-597.36,0.0005452,120]
[325224220,1714596653520,-543.06,0.0005452,120]
[325224221,1714596653529,-151.0,0.0005452,7]
[325224222,1714596653538,-253.329038,0.0005452,7]
[325224223,1714596653548,-151.0,0.0005452,7]
[325224224,1714596653558,-500.0,0.0005452,120]
[325224225,1714596653568,-1000.0,0.0005452,120]
[325224226,1714596653577,-500.0,0.0005452,120]
[325224227,1714596653587,-151.0,0.0005452,3]
[325224228,1714596653596,-500.0,0.0005452,120]
[325224229,1714596653605,-847.59,0.0005452,120]
[325224230,1714596653614,-500.0,0.0005452,120]
[325224231,1714596653624,-500.0,0.0005452,120]
[325224232,1714596653633,-500.0,0.0005452,120]
[325224233,1714596653644,-162.529464,0.0005452,7]
[325224234,1714596653653,-500.0,0.0005452,120]
[325224235,1714596653662,-552.66,0.0005452,120]
[325224236,1714596653672,-737.95,0.0005452,120]
[325224237,1714596653681,-151.0,0.0005452,7]
[325224238,1714596653690,-500.0,0.0005452,120]
[325224239,1714596653699,-500.0,0.0005452,60]
[325224240,1714596653708,-735.13,0.0005452,120]
[325224241,1714596653718,-500.0,0.0005452,120]
[325224242,1714596653728,-151.0,0.0005452,7]
[325224243,1714596653738,-500.0,0.0005452,21]
[325224244,1714596653747,-500.0,0.0005452,120]
[325224245,1714596653757,-500.0,0.0005452,120]
[325224246,1714596653766,-3241.16,0.0005452,120]
[325224247,1714596653776,-396.5038095,0.0005452,120]
[325224248,1714596653785,-624.7,0.0005452,120]
[325224249,1714596653794,-151.0,0.0005452,7]
[325224250,1714596653807,-503.11799723,0.0005452,120]
[325224251,1714596653817,-1071.63,0.0005452,120]
[325224252,1714596653827,-500.0,0.0005452,120]
[325224253,1714596653836,-151.0,0.0005452,7]
[325224254,1714596653846,-1139.17,0.0005452,120]
[325224255,1714596653856,-629.98,0.0005452,7]
[325224256,1714596653865,-513.73,0.0005452,120]
[325224257,1714596653874,-1040.84,0.0005452,120]
[325224258,1714596653884,-6873.87,0.0005452,120]
[325224259,1714596653893,-500.0,0.0005452,120]
[325224260,1714596653902,-151.0,0.0005452,7]
[325224261,1714596653911,-614.531169,0.0005452,7]
[325224262,1714596653920,-500.0,0.0005452,120]
[325224263,1714596653930,-151.0,0.0005452,7]
[325224264,1714596653939,-614.531169,0.0005452,7]
[325224265,1714596653948,-1819.25,0.0005452,2]
[325224266,1714596653961,-493.86637402,0.0005452,120]
[325224267,1714596653970,-807.38,0.0005452,120]
[325224268,1714596653982,-684.4,0.0005452,120]
[325224269,1714596653991,-1563.93,0.0005452,120]
[325224270,1714596654002,-880.74,0.0005452,120]
[325224271,1714596654011,-500.0,0.0005452,120]
[325224272,1714596654020,-503.05835934,0.0005452,120]
[325224273,1714596654029,-500.0,0.0005452,120]
[325224274,1714596654039,-500.0,0.0005452,120]
[325224275,1714596654049,-500.0,0.0005452,120]
[325224276,1714596654058,-503.0,0.0005452,120]
[325224277,1714596654067,-417.250857,0.0005452,7]
[325224278,1714596654076,-418.13,0.0005452,120]
[325224279,1714596654085,-500.0,0.0005452,120]
[325224280,1714596654094,-417.250857,0.0005452,7]
[325224281,1714596654104,-905.71,0.0005452,120]
[325224282,1714596654113,-500.0,0.0005452,120]
[325224283,1714596654122,-500.0,0.0005452,120]
[325224284,1714596654131,-287.73985,0.0005452,7]
[325224285,1714596654141,-500.0,0.0005452,120]
[325224286,1714596654150,-500.0,0.0005452,3]
[325224287,1714596654159,-287.73985,0.0005452,7]
[325224288,1714596654168,-500.0,0.0005452,120]
[325224289,1714596654178,-151.0,0.0005452,7]
[325224290,1714596654187,-1006.03,0.0005452,120]
[325224291,1714596654197,-990.64,0.0005452,120]
[325224292,1714596654206,-500.0,0.0005452,120]
[325224293,1714596654216,-500.0,0.0005452,120]
[325224294,1714596654225,-151.0,0.0005452,7]
[325224295,1714596654234,-529.69,0.0005452,120]
[325224296,1714596654243,-500.0,0.0005452,120]
[325224297,1714596654253,-500.0,0.0005452,120]
[325224298,1714596654262,-399.351879,0.0005452,7]
[325224299,1714596654272,-151.0,0.0005452,7]
[325224300,1714596654281,-957.98,0.0005452,120]
[325224301,1714596654291,-399.351879,0.0005452,7]
[325224302,1714596654300,-957.45,0.0005452,120]
[325224303,1714596654310,-544.99484807,0.0005452,120]
[325224304,1714596654320,-501.28,0.0005452,120]
[325224305,1714596654330,-151.0,0.0005452,7]
[325224306,1714596654339,-500.0,0.0005452,120]
[325224307,1714596654349,-500.0,0.0005452,120]
[325224308,1714596654358,-1396.65,0.0005452,30]
[325224309,1714596654368,-13131.9,0.0005452,120]
[325224310,1714596654378,-649.29,0.0005452,120]
[325224311,1714596654387,-500.0,0.0005452,120]
[325224312,1714596654397,-220.364079,0.0005452,7]
[325224313,1714596654407,-220.364079,0.0005452,7]
[325224314,1714596654416,-500.0,0.0005452,120]
[325224315,1714596654427,-5415.88,0.0005452,120]
[325224316,1714596654437,-500.0,0.0005452,120]
[325224317,1714596654447,-524.46,0.0005452,120]
[325224318,1714596654457,-500.0,0.0005452,120]
[325224319,1714596654467,-500.0,0.0005452,120]
[325224320,1714596654479,-945.484392,0.0005452,7]
[325224321,1714596654488,-1124.84,0.0005452,120]
[325224322,1714596654497,-945.484392,0.0005452,7]
[325224323,1714596654507,-725.84,0.0005452,120]
[325224324,1714596654516,-175.798414,0.0005452,7]
[325224325,1714596654525,-721.56,0.0005452,120]
[325224326,1714596654535,-2624.92,0.0005452,120]
[325224327,1714596654544,-151.0,0.0005452,7]
[325224328,1714596654554,-773.09,0.0005452,120]
[325224329,1714596654563,-175.798414,0.0005452,7]
[325224330,1714596654574,-262.519492,0.0005452,7]
[325224331,1714596654583,-672.9,0.0005452,120]
[325224332,1714596654593,-262.519492,0.0005452,7]
[325224333,1714596654603,-671.69,0.0005452,120]
[325224334,1714596654612,-500.0,0.0005452,120]
[325224335,1714596654622,-695.297328,0.0005452,7]
[325224336,1714596654632,-904.57,0.0005452,120]
[325224337,1714596654641,-695.297328,0.0005452,7]
[325224338,1714596654651,-4150.6,0.0005452,120]
[325224339,1714596654661,-1064.37,0.0005452,120]
[325224340,1714596654671,-262.519492,0.0005452,7]
[325224341,1714596654681,-262.519492,0.0005452,7]
[325224342,1714596654690,-695.297328,0.0005452,7]
[325224343,1714596654699,-695.297328,0.0005452,7]
[325224344,1714596654709,-500.0,0.0005452,120]
[325224345,1714596654718,-500.0,0.0005452,120]
[325224346,1714596654729,-708.55,0.0005452,120]
[325224347,1714596654738,-151.0,0.0005452,7]
[325224348,1714596654747,-151.0,0.0005452,7]
[325224349,1714596654757,-500.0,0.0005452,120]
[325224350,1714596654766,-500.0,0.0005452,120]
[325224351,1714596654776,-500.0,0.0005452,120]
[325224352,1714596654785,-500.0,0.0005452,120]
[325224353,1714596654795,-265.54965244,0.0005452,120]
[325224354,1714596654804,-500.0,0.0005452,120]
[325224355,1714596654813,-500.0,0.0005452,120]
[325224356,1714596654823,-500.0,0.0005452,120]
[325224357,1714596654833,-2139.31,0.0005452,120]
[325224358,1714596654843,-747.59,0.0005452,120]
[325224359,1714596654853,-500.0,0.0005452,120]
[325224360,1714596654863,-500.0,0.0005452,120]
[325224361,1714596654872,-1819.15,0.0005452,120]
[325224362,1714596654883,-893.59,0.0005452,120]
[325224363,1714596654894,-2548.41,0.0005452,120]
[325224364,1714596654903,-647.78,0.0005452,120]
[325224365,1714596654913,-382.848254,0.0005452,7]
[325224366,1714596654924,-539.57912611,0.0005452,120]
[325224367,1714596654934,-382.848254,0.0005452,7]
[325224368,1714596654944,-972.62,0.0005452,120]
[325224369,1714596654959,-382.848254,0.0005452,7]
[325224370,1714596654972,-382.848254,0.0005452,7]
[325224371,1714596654983,-151.0,0.0005452,7]
[325224372,1714596654994,-196.312664,0.0005452,7]
[325224373,1714596655003,-500.0,0.0005452,120]
[325224374,1714596655014,-530.19570087,0.0005452,120]
[325224375,1714596655024,-500.0,0.0005452,120]
[325224376,1714596655036,-953.99,0.0005452,120]
[325224377,1714596655049,-1932.29,0.0005452,120]
[325224378,1714596655059,-912.85,0.0005452,120]
[325224379,1714596655068,-412.279401,0.0005452,7]
[325224380,1714596655078,-412.279401,0.0005452,7]
[325224381,1714596655087,-631.99,0.0005452,120]
[325224382,1714596655097,-412.279401,0.0005452,7]
[325224383,1714596655107,-412.279401,0.0005452,7]
[325224384,1714596655116,-151.0,0.0005452,7]
[325224385,1714596655126,-151.0,0.0005452,7]
[325224386,1714596655136,-500.0,0.0005452,120]
[325224387,1714596655146,-170.270885,0.0005452,7]
[325224388,1714596655155,-170.270885,0.0005452,7]
[325224389,1714596655164,-564.95,0.0005452,120]
[325224390,1714596655174,-771.7,0.0005452,120]
[325224391,1714596655183,-156.225468,0.0005452,7]
[325224392,1714596655193,-156.225468,0.0005452,7]
[325224393,1714596655203,-170.270885,0.0005452,7]
[325224394,1714596655212,-500.0,0.0005452,120]
[325224395,1714596655221,-170.270885,0.0005452,7]
[325224396,1714596655232,-156.225468,0.0005452,7]
[325224397,1714596655241,-500.0,0.0005452,120]
[325224398,1714596655251,-156.225468,0.0005452,7]
[325224399,1714596655261,-500.0,0.0005452,5]
[325224400,1714596655270,-165.149335,0.0005452,7]
[325224401,1714596655280,-165.149335,0.0005452,7]
[325224402,1714596655289,-165.149335,0.0005452,7]
[325224403,1714596655299,-588.0,0.000546,30]
[325224404,1714596655308,-769.4,0.0005466,30]
[325224405,1714596655318,-500.0,0.00054794,120]
[325224406,1714596655327,-500.0,0.00054794,120]
[325224407,1714596655337,-500.0,0.00054794,120]
[325224408,1714596655346,-500.0,0.00054794,120]
[325224409,1714596655356,-1000.0,0.00054794,120]
[325224410,1714596655366,-1000.0,0.00054794,120]
[325224411,1714596655376,-1000.0,0.00054794,120]
[325224412,1714596655386,-1000.0,0.00054794,120]
[325224413,1714596655396,-1000.0,0.00054794,120]
[325224414,1714596655405,-1007.92034152,0.00054794,120]
[325224415,1714596655416,-500.0,0.00054794,120]
[325224416,1714596655427,-500.0,0.00054794,120]
[325224417,1714596655437,-514.56,0.00054794,120]
[325224418,1714596655447,-151.0,0.00054794,7]
[325224419,1714596655457,-614.531169,0.00054794,7]
[325224420,1714596655467,-151.0,0.00054794,7]
[325224421,1714596655479,-614.531169,0.00054794,7]
[325224422,1714596655488,-417.250857,0.00054794,7]
[325224423,1714596655498,-417.250857,0.00054794,7]
[325224424,1714596655508,-287.73985,0.00054794,7]
[325224425,1714596655518,-287.73985,0.00054794,7]
[325224426,1714596655529,-151.0,0.00054794,7]
[325224427,1714596655538,-151.0,0.00054794,7]
[325224428,1714596655549,-399.351879,0.00054794,7]
[325224429,1714596655560,-151.0,0.00054794,7]
[325224430,1714596655570,-399.351879,0.00054794,7]
[325224431,1714596655581,-262.445648,0.00054794,7]
[325224432,1714596655591,-220.364079,0.00054794,7]
[325224433,1714596655601,-500.0,0.00054794,120]
[325224434,1714596655611,-500.0,0.00054794,120]
[325224435,1714596655621,-500.0,0.00054794,120]
[325224436,1714596655631,-220.364079,0.00054794,7]
[325224437,1714596655641,-500.0,0.00054794,120]
[325224438,1714596655650,-945.484392,0.00054794,7]
[325224439,1714596655660,-945.484392,0.00054794,7]
[325224440,1714596655670,-504.36429702,0.00054794,120]
[325224441,1714596655680,-175.798414,0.00054794,7]
[325224442,1714596655690,-151.0,0.00054794,7]
[325224443,1714596655699,-175.798414,0.00054794,7]
[325224444,1714596655710,-1000.0,0.00054794,120]
[325224445,1714596655720,-1000.0,0.00054794,120]
[325224446,1714596655732,-1000.0,0.00054794,120]
[325224447,1714596655744,-1000.0,0.00054794,120]
[325224448,1714596655753,-150.0,0.00054861,120]
[325224449,1714596655763,-151.0,0.00055041,120]
[325224450,1714596655773,-500.0,0.00055068,120]
[325224451,1714596655783,-500.0,0.00055068,120]
[325224452,1714596655793,-500.0,0.00055068,120]
[325224453,1714596655803,-500.0,0.00055068,120]
[325224454,1714596655812,-605.36,0.00055068,120]
[325224455,1714596655822,-635.9,0.00055068,120]
[325224456,1714596655832,-532.28255063,0.00055068,120]
[325224457,1714596655842,-500.0,0.00055068,120]
[325224458,1714596655852,-600.0,0.00055068,120]
[325224459,1714596655862,-151.0,0.00055068,120]
[325224460,1714596655872,-500.0,0.00055068,120]
[325224461,1714596655882,-500.0,0.00055068,120]
[325224462,1714596655891,-500.0,0.00055068,120]
[325224463,1714596655901,-905.44,0.00055068,120]
[325224464,1714596655911,-500.0,0.00055068,120]
[325224465,1714596655920,-504.3511606,0.00055068,120]
[325224466,1714596655930,-1823.07,0.00055068,120]
[325224467,1714596655940,-500.0,0.00055068,120]
[325224468,1714596655951,-500.0,0.00055068,120]
[325224469,1714596655970,-1540.18,0.00055068,120]
[325224470,1714596655982,-500.0,0.00055068,120]
[325224471,1714596655992,-500.0,0.00055068,120]
[325224472,1714596656002,-747.85,0.00055068,120]
[325224473,1714596656012,-500.0,0.00055068,120]
[325224474,1714596656022,-500.0,0.00055068,120]
[325224475,1714596656165,-414.76892943,0.00055068,120]
[325224476,1714596656175,-582.8,0.00055068,120]
[325224477,1714596656184,-500.0,0.00055068,120]
[325224478,1714596656193,-405.47384013,0.00055068,120]
[325224479,1714596656203,-500.0,0.00055068,120]
[325224480,1714596656212,-500.0,0.00055068,120]
[325224481,1714596656221,-500.0,0.00055068,120]
[325224482,1714596656233,-151.0,0.00055068,120]
[325224483,1714596656242,-783.32,0.00055068,120]
[325224484,1714596656251,-500.0,0.00055068,120]
[325224485,1714596656260,-500.0,0.00055068,30]
[325224486,1714596656270,-500.0,0.00055068,120]
[325224487,1714596656279,-660.58,0.00055068,120]
[325224488,1714596656289,-500.0,0.00055068,120]
[325224489,1714596656298,-528.91,0.00055068,120]
[325224490,1714596656307,-494.75787689,0.00055068,120]
[325224491,1714596656317,-500.0,0.00055068,120]
[325224492,1714596656327,-651.79,0.00055068,120]
[325224493,1714596656336,-569.39,0.00055068,120]
[325224494,1714596656346,-533.64,0.00055068,120]
[325224495,1714596656355,-893.16,0.00055068,120]
[325224496,1714596656364,-500.0,0.00055068,120]
[325224497,1714596656373,-750.74,0.00055068,120]
[325224498,1714596656383,-500.0,0.00055068,120]
[325224499,1714596656393,-500.0,0.00055068,120]
[325224500,1714596656403,-918.03,0.00055068,120]
[325224501,1714596656412,-500.0,0.00055068,120]
[325224502,1714596656423,-500.0,0.00055068,120]
[325224503,1714596656433,-500.0,0.00055068,120]
[325224504,1714596656442,-809.76,0.00055068,120]
[325224505,1714596656452,-151.0,0.00055068,120]
[325224506,1714596656461,-155.082013,0.00055068,120]
[325224507,1714596656471,-816.25,0.00055068,120]
[325224508,1714596656480,-500.0,0.00055068,120]
[325224509,1714596656490,-151.0,0.00055068,120]
[325224510,1714596656499,-676.4,0.00055068,120]
[325224511,1714596656509,-151.0,0.00055068,120]
[325224512,1714596656519,-500.0,0.00055068,120]
[325224513,1714596656529,-500.0,0.00055068,120]
[325224514,1714596656539,-502.26995536,0.00055068,120]
[325224515,1714596656549,-725.28,0.00055068,120]
[325224516,1714596656559,-617.03,0.00055068,120]
[325224517,1714596656568,-500.0,0.00055068,60]
[325224518,1714596656577,-500.0,0.00055068,120]
[325224519,1714596656586,-193.802651,0.00055068,120]
[325224520,1714596656595,-581.2700344,0.00055068,120]
[325224521,1714596656604,-500.0,0.00055068,120]
[325224522,1714596656613,-193.802651,0.00055068,120]
[325224523,1714596656622,-500.0,0.00055068,120]
[325224524,1714596656633,-807.48,0.00055068,120]
[325224525,1714596656642,-747.13,0.00055068,120]
[325224526,1714596656652,-500.0,0.00055068,120]
[325224527,1714596656662,-500.0,0.00055068,2]
[325224528,1714596656671,-880.55,0.00055068,120]
[325224529,1714596656680,-772.32,0.00055068,120]
[325224530,1714596656690,-500.0,0.00055068,120]
[325224531,1714596656700,-500.0,0.00055068,120]
[325224532,1714596656710,-500.0,0.00055068,120]
[325224533,1714596656719,-1424.37,0.00055068,120]
[325224534,1714596656729,-902.14,0.00055068,120]
[325224535,1714596656739,-285.78425785,0.00055068,2]
[325224536,1714596656749,-622.31,0.00055068,120]
[325224537,1714596656758,-908.32,0.00055068,120]
[325224538,1714596656767,-151.0,0.00055068,120]
[325224539,1714596656775,-1274.48,0.00055068,120]
[325224540,1714596656785,-500.0,0.00055068,120]
[325224541,1714596656794,-500.0,0.00055068,120]
[325224542,1714596656804,-500.0,0.00055068,120]
[325224543,1714596656814,-500.0,0.00055068,120]
[325224544,1714596656823,-500.0,0.00055068,120]
[325224545,1714596656832,-151.0,0.00055068,120]
[325224546,1714596656842,-505.13,0.00055068,120]
[325224547,1714596656852,-500.0,0.00055068,120]
[325224548,1714596656861,-2748.45,0.00055068,120]
[325224549,1714596656871,-2748.72,0.00055068,120]
[325224550,1714596656880,-203.31620878,0.00055068,120]
[325224551,1714596656889,-751.55,0.00055068,120]
[325224552,1714596656898,-500.0,0.00055068,120]
[325224553,1714596656908,-500.0,0.00055068,120]
[325224554,1714596656917,-500.0,0.00055068,120]
[325224555,1714596656928,-151.0,0.00055068,120]
[325224556,1714596656937,-500.0,0.00055068,120]
[325224557,1714596656947,-500.0,0.00055068,120]
[325224558,1714596656962,-891.08,0.00055068,120]
[325224559,1714596656971,-542.04,0.00055068,120]
[325224560,1714596656982,-500.0,0.00055068,120]
[325224561,1714596656991,-500.0,0.00055068,120]
[325224562,1714596657002,-718.42,0.00055068,120]
[325224563,1714596657011,-500.0,0.00055068,120]
[325224564,1714596657020,-876.77,0.00055068,120]
[325224565,1714596657029,-500.0,0.00055068,120]
[325224566,1714596657038,-500.0,0.00055068,120]
[325224567,1714596657048,-500.0,0.00055068,120]
[325224568,1714596657057,-637.86599791,0.00055068,120]
[325224569,1714596657066,-151.0,0.00055068,120]
[325224570,1714596657075,-500.0,0.00055068,120]
[325224571,1714596657084,-500.0,0.00055068,120]
[325224572,1714596657093,-500.0,0.00055068,120]
[325224573,1714596657102,-500.0,0.00055068,120]
[325224574,1714596657112,-500.0,0.00055068,120]
[325224575,1714596657121,-500.0,0.00055068,120]
[325224576,1714596657130,-500.0,0.00055068,120]
[325224577,1714596657139,-500.0,0.00055068,120]
[325224578,1714596657148,-500.0,0.00055068,120]
[325224579,1714596657158,-597.36,0.00055068,120]
[325224580,1714596657167,-543.06,0.00055068,120]
[325224581,1714596657176,-151.0,0.00055068,120]
[325224582,1714596657185,-253.329038,0.00055068,120]
[325224583,1714596657194,-500.0,0.00055068,120]
[325224584,1714596657203,-1000.0,0.00055068,120]
[325224585,1714596657212,-500.0,0.00055068,120]
[325224586,1714596657221,-151.0,0.00055068,3]
[325224587,1714596657232,-500.0,0.00055068,120]
[325224588,1714596657241,-847.59,0.00055068,120]
[325224589,1714596657250,-500.0,0.00055068,120]
[325224590,1714596657260,-500.0,0.00055068,120]
[325224591,1714596657269,-500.0,0.00055068,120]
[325224592,1714596657279,-500.0,0.00055068,120]
[325224593,1714596657288,-552.66,0.00055068,120]
[325224594,1714596657298,-737.95,0.00055068,120]
[325224595,1714596657307,-151.0,0.00055068,120]
[325224596,1714596657316,-153.945223,0.00055068,120]
[325224597,1714596657326,-500.0,0.00055068,120]
[325224598,1714596657335,-500.0,0.00055068,60]
[325224599,1714596657344,-735.13,0.00055068,120]
[325224600,1714596657354,-500.0,0.00055068,120]
[325224601,1714596657363,-500.0,0.00055068,21]
[325224602,1714596657372,-151.0,0.00055068,120]
[325224603,1714596657382,-151.0,0.00055068,120]
[325224604,1714596657391,-500.0,0.00055068,120]
[325224605,1714596657400,-500.0,0.00055068,120]
[325224606,1714596657410,-3241.16,0.00055068,120]
[325224607,1714596657419,-624.7,0.00055068,120]
[325224608,1714596657428,-151.0,0.00055068,120]
[325224609,1714596657438,-151.0,0.00055068,120]
[325224610,1714596657447,-1071.63,0.00055068,120]
[325224611,1714596657456,-500.0,0.00055068,120]
[325224612,1714596657465,-151.0,0.00055068,120]
[325224613,1714596657474,-151.0,0.00055068,120]
[325224614,1714596657485,-1139.17,0.00055068,120]
[325224615,1714596657494,-629.98,0.00055068,7]
[325224616,1714596657503,-513.73,0.00055068,120]
[325224617,1714596657512,-1040.84,0.00055068,120]
[325224618,1714596657522,-6873.87,0.00055068,120]
[325224619,1714596657531,-500.0,0.00055068,120]
[325224620,1714596657540,-151.0,0.00055068,120]
[325224621,1714596657550,-614.531169,0.00055068,120]
[325224622,1714596657559,-503.97923721,0.00055068,120]
[325224623,1714596657569,-151.0,0.00055068,120]
[325224624,1714596657578,-1819.25,0.00055068,2]
[325224625,1714596657588,-614.531169,0.00055068,120]
[325224626,1714596657596,-807.38,0.00055068,120]
[325224627,1714596657605,-684.4,0.00055068,120]